Cogmind - Beta 12 @@@ ROGUE MODE // 2023.04.04 @ 18:43:40 Player: ArabianSandBoa Result: Destroyed by G-67 Veteran with Field Laser Performance ------------- Evolutions (4) 2000 Regions Visited (12) 2400 Robots Destroyed (222) 1110 Value Destroyed (10263) 10263 Prototype IDs (44) 880 Alien Tech Used (0) 0 Bonus (5224) 5224 TOTAL SCORE: 21877 Bonus ------- Triggered High Security 500 High Alert Combat Kills 3120 Follower Combat Kills 1314 Entered Garrisons 600 Used RIF Installer 1500 Aligned with FarCom 300 Friendly Fire -2110 Cogmind --------- Core Integrity 0/850 Matter 187/300 Energy 149/150 System Corruption 20% Temperature Cool (3) Movement Flying (39) Location -6/Factory Parts ------- > --- POWER (1) -------- Micro Antimatter Reactor (fused) > --- PROPULSION (4) --- Q-thruster Impulse Thruster Array > --- UTILITY (8) ------ Advanced Signal Interpreter ECM Suite System Shield Improved Recalibrator > --- WEAPON (2) ------- (None) > --- INVENTORY (5) ---- Medium Treads Cesium-ion Thruster Xenon Bombardment Thruster Field Lobotomy Kit (1) Longsword +1 Peak State ------------ > --- POWER ------------ Reinforced Antimatter Reactor > --- PROPULSION ------- Armored Heavy Treads Armored Heavy Treads > --- UTILITY ---------- Advanced Cooling System Huge Storage Unit Improved Kinecellerator Improved Weapon Cycler Active Sensor Spoofer Improved Heavy Armor Plating Improved Remote Force Field > --- WEAPON ----------- Heavy Linear Accelerator > --- INVENTORY -------- Fusion Compressor Micro Antimatter Reactor Armored Wheel Q-thruster Q-thruster Q-thruster Q-thruster Impulse Thruster Array Advanced Weight Redist. System Advanced Launcher Guidance Computer Relay Coupler [Grunt] Relay Coupler [Grunt] Relay Coupler [Grunt] Relay Coupler [Brawler] Relay Coupler [Duelist] Long-range Tractor Beam Improved Recalibrator Quantum Rifle Quantum Rifle Gamma Bomb Array Fusion Bomb Launcher Remote Datajack Field Lobotomy Kit Longsword +1 [Rating: 114] Favorites ----------- Power Micro Nuclear Core Engine Light Angular Momentum Engine Power Core Micro Nuclear Core Reactor Particle Reactor Propulsion Compact Wheel Treads Medium Treads Leg Aluminum Leg Wheel Compact Wheel Flight Unit Q-thruster Utility Huge Storage Unit Device Advanced Cooling System Storage Huge Storage Unit Processor Advanced Targeting Computer Hackware Hacking Suite Protection Improved Heavy Armor Plating Weapon Improved Spread Laser Energy Gun Improved Spread Laser Energy Cannon Light EM Pulse Cannon Ballistic Gun Assault Rifle Ballistic Cannon Heavy Linear Accelerator Launcher Fusion Bomb Launcher Special Weapon Remote Datajack Slashing Weapon Longsword +1 Piercing Weapon Lance Special Melee Weapon Datajack Build | -11 -10 -10 -10 -9 -8 -8 -8 -7 -7 -6 -6 -6 ------- Run | Jun Mat Min Exi Min Mat Gar Mat Fac Gar Fac Gar Fac Slots Evolved 8 | . . . . . 4 . . 2 . 2 . . Power . | . . . . . . . . . . . . . Propulsion 2 | . . . . . 1 . . 1 . . . . Utility 6 | . . . . . 3 . . 1 . 2 . . Weapon . | . . . . . . . . . . . . . Parts Attached 288 | . 23 5 1 6 53 38 24 9 37 1 31 60 Power 25 | . 3 . . . 7 1 2 . 4 . 2 6 Engine 6 | . 1 . . . 4 . 1 . . . . . Core 14 | . 2 . . . 3 1 1 . 3 . 1 3 Reactor 5 | . . . . . . . . . 1 . 1 3 Propulsion 66 | . 13 4 . 4 15 1 7 1 5 1 6 9 Treads 27 | . 4 2 . 2 8 . . 1 5 1 4 . Leg 1 | . 1 . . . . . . . . . . . Wheel 28 | . 8 2 . 2 7 1 6 . . . 2 . Hover . | . . . . . . . . . . . . . Flight 10 | . . . . . . . 1 . . . . 9 Utility 91 | . 4 1 . 1 11 13 3 5 20 . 11 22 Device 33 | . . . . . 6 3 1 2 3 . 8 10 Storage 6 | . 2 . . . 1 2 . . 1 . . . Processor 6 | . 1 1 . . 1 . . . . . . 3 Hackware 23 | . . . . 1 1 1 . . 11 . 2 7 Protection 23 | . 1 . . . 2 7 2 3 5 . 1 2 Artifact . | . . . . . . . . . . . . . Weapon 106 | . 3 . 1 1 20 23 12 3 8 . 12 23 Energy Gun 40 | . . . . . 8 12 7 2 3 . 1 7 Energy Cannon 6 | . . . . . 4 . 1 . 1 . . . Ballistic Gun 18 | . 3 . . 1 5 7 2 . . . . . Ballistic Cannon 6 | . . . . . . . . . . . 6 . Launcher 6 | . . . . . 1 1 . . . . . 4 Special Weapon 13 | . . . . . . . . . 3 . 2 8 Impact Weapon . | . . . . . . . . . . . . . Slashing Weapon 11 | . . . . . 2 1 . . 1 . 3 4 Piercing Weapon 5 | . . . . . . 2 2 1 . . . . Special Melee Weapon 1 | . . . 1 . . . . . . . . . Unidentified Prototypes 4 | . . . . . 2 . 1 . . . . 1 Parts Lost 41 | . 1 . . . 9 2 1 . 2 . . 26 Power 6 | . . . . . 3 . . . 1 . . 2 Propulsion 7 | . . . . . 1 1 . . . . . 5 Utility 21 | . 1 . . . 3 1 1 . 1 . . 14 Weapon 7 | . . . . . 2 . . . . . . 5 Highest Loss Streak 14 | . 1 . . . 5 1 1 . 2 . . 14 To Critical Strikes . | . . . . . . . . . . . . . Average Slot Usage (%) 88 | . 99 100 100 99 98 92 88 81 85 66 72 74 Engine 1 | . 3 . . . 2 . 6 7 . . . . Core 5 | . 10 14 14 14 6 9 2 . 1 6 5 . Reactor 1 | . . . . . . . . . 5 . . 5 Treads 8 | . 2 8 . 2 5 . . 7 22 20 13 9 Wheel 15 | . 24 19 28 25 21 26 27 15 . . 4 . Device 9 | . . . . . 10 9 7 7 4 6 19 26 Storage 8 | . 14 14 14 14 9 9 9 7 7 6 6 5 Processor 5 | . 7 14 14 5 4 9 9 7 3 . . 3 Hackware 5 | . . . . 7 16 . . . 13 . 2 3 Protection 7 | . 6 . . . 3 9 9 12 8 13 11 5 Energy Gun 7 | . . . . . 13 14 14 14 7 6 . 2 Ballistic Gun 5 | . 28 28 16 27 1 1 2 . . . . . Ballistic Cannon 1 | . . . . . . . . . . . 5 3 Special Weapon 1 | . . . . . . . . . 5 6 . . Naked Turns . | . . . . . . . . . . . . . Heaviest Build 237 | 11 92 89 89 90 101 225 237 236 138 134 169 170 Greatest Support 139 | 20 40 40 32 40 63 48 48 44 126 128 139 120 Greatest Overweight (x) 11 | . 4 2 2 2 5 5 8 8 3 1 11 4 Average Overweight (x) 2 | . 2 2 2 2 1 4 4 7 . 1 3 . Largest Inventory Capacity 35 | . 25 25 25 25 25 35 35 35 35 25 25 25 Average Capacity 27 | . 24 25 25 25 25 32 35 35 25 25 25 21 Most Carried 35 | . 25 25 25 25 25 35 35 35 34 25 25 25 Average Carried 25 | . 15 23 21 24 24 30 34 34 24 25 24 20 Final Capacity 35 | 8 25 25 25 25 25 35 35 35 25 25 25 5 Final Carried 35 | 6 25 23 25 25 25 35 35 35 25 25 23 5 Class Distribution -------------------- 53% | Bothacker-Mutant 21% | Mutant 9% | Scavenger-Mutant 7% | Hauler-Mutant 4% | Hacker-Mutant Dominant Class ---------------- Mutant | -10/Materials Mutant | -10/Mines Mutant | -10/Exiles Mutant | -9/Mines Scavenger-Mutant | -8/Materials Hauler-Mutant | -8/Garrison Bothacker-Mutant | -8/Materials Bothacker-Mutant | -7/Factory Bothacker-Mutant | -7/Garrison Commander-Mutant | -6/Factory Bothacker-Mutant | -6/Garrison Bothacker-Mutant | -6/Factory Resources | -11 -10 -10 -10 -9 -8 -8 -8 -7 -7 -6 -6 -6 ----------- Run | Jun Mat Min Exi Min Mat Gar Mat Fac Gar Fac Gar Fac Matter Collected 5960 | 194 873 186 . 79 682 429 429 . 698 . 1584 806 Remotely 535 | . . . . . . . . . . . . 535 Salvage Created 8845 | . 1514 297 . 49 1648 685 1929 . 725 . 1256 742 Parts 433 | . 82 16 . 6 91 27 94 . 34 . 43 40 Haulers Intercepted 11 | . 1 . . . 6 . 4 . . . . . Recyclers Shooed 14 | . 8 3 . . 1 . 2 . . . . . Parts Field Recycled . | . . . . . . . . . . . . . Retrieved Matter . | . . . . . . . . . . . . . Parts Self-Destructed . | . . . . . . . . . . . . . Prevented . | . . . . . . . . . . . . . Kills | -11 -10 -10 -10 -9 -8 -8 -8 -7 -7 -6 -6 -6 ------- Run | Jun Mat Min Exi Min Mat Gar Mat Fac Gar Fac Gar Fac Combat Hostiles Destroyed 153 | . 14 3 . 3 31 24 27 . 11 . 19 21 Melee 3 | . . . . . . . . . . . . 3 Guns 105 | . 14 3 . 3 26 24 21 . 11 . . 3 Cannons 29 | . . . . . 1 . 3 . . . 19 6 AOE 14 | . . . . . 3 . 2 . . . . 9 Classes Destroyed 20 | . 8 1 . . 3 2 2 . 1 . 1 2 Worker 13 | . 4 1 . . 5 . 3 . . . . . Builder 6 | . 1 . . . 4 . 1 . . . . . Tunneler 4 | . 1 2 . . 1 . . . . . . . Hauler 11 | . 1 . . . 6 . 4 . . . . . Recycler 16 | . 8 1 . . 2 . 5 . . . . . Mechanic 2 | . . . . . . . 2 . . . . . Operator 3 | . 3 . . . . . . . . . . . Watcher 9 | . 3 . . . 3 . 3 . . . . . Swarmer 29 | . . 3 . 3 7 4 2 . 6 . 3 1 Cutter 2 | . . . . . . . . . 2 . . . Saboteur 2 | . . . . . . . . . . . . 2 Grunt 71 | . 14 . . . 14 13 13 . 2 . 10 5 Brawler 6 | . . . . . 2 . 2 . 1 . 1 . Duelist 10 | . . . . . 2 3 2 . . . 2 1 Protector 2 | . . . . . . . 1 . . . . 1 Sentry 23 | . . . . . 6 . 7 . 3 . 3 4 Hunter 3 | . . . . . . 1 . . . . . 2 Programmer 7 | . . . . . . 3 . . . . . 4 Behemoth 1 | . . . . . . . . . . . 1 . Infiltrator 1 | . . . . . . . . . . . . 1 Best Kill Streak 8 | . 7 4 . 3 8 4 8 . 4 . 3 5 Combat Bots Only 8 | . 3 3 . 3 8 4 5 . 4 . 3 5 Max Kills in Single Turn 4 | . 2 1 . 2 2 2 2 . 1 . 1 4 Gunslinging 1 | . . . . 1 1 1 1 . . . . . Exploded 4 | . . . . . 2 . 1 . . . . 4 Melee 1 | . . . . . . . . . . . . 1 Uniques/NPCs Destroyed 1 | . . 1 . . . . . . . . . . YI-UF0 (-10/Mines) Combat | -11 -10 -10 -10 -9 -8 -8 -8 -7 -7 -6 -6 -6 -------- Run | Jun Mat Min Exi Min Mat Gar Mat Fac Gar Fac Gar Fac Damage Taken 11517 | . 695 33 . 41 1449 966 934 . 1349 . 1514 4536 Core 1521 | . 132 10 . . 220 136 98 . 70 . 49 806 Absorbed by Shields 81 | . . . . . . . . . . . . 81 Reduced by Siege Mode 460 | . . . . . . . . . 12 . 54 394 Core Remaining (%) 62 | 100 . . . 43 . . 17 . 90 . . . Volleys Fired 652 | . 107 23 . 4 119 72 87 . 83 2 103 52 Largest 2 | . 2 2 . 2 2 2 2 . 2 1 1 2 Hottest 188 | . 40 40 . 43 150 150 150 . 162 5 83 188 Shots Fired 1022 | . 214 46 . 8 215 124 157 . 95 2 103 58 Gun 803 | . 214 46 . 8 184 123 154 . 57 . . 17 Cannon 144 | . . . . . 27 . 3 . 5 . 94 15 Launcher 12 | . . . . . 4 1 . . . . . 7 Special 63 | . . . . . . . . . 33 2 9 19 Kinetic 468 | . 214 46 . 8 34 18 39 . . . 94 15 Thermal 419 | . . . . . 150 105 90 . 57 . . 17 Explosive 11 | . . . . . 4 1 . . . . . 6 Electromagnetic 61 | . . . . . 27 . 28 . 5 . . 1 Robot Hit Streak 45 | . 13 10 . 2 35 14 19 . 45 3 14 37 Robot Miss Streak 12 | . 3 1 . 2 12 5 6 . 3 . 3 2 Penetration Max 1 | . . . . . . . 1 . . . . . Secondary Targets 14 | . . . . 1 5 3 3 . 2 . . . Max Gunslinging Chain 1 | . . . . 1 1 1 1 . 1 . . . Shots Hit Robots 740 | . 136 33 4 4 171 88 117 . 66 2 69 50 Core Hits 583 | . 60 15 . 3 181 110 126 . 22 . 25 41 Critical Kills 2 | . 1 . . . . . 1 . . . . . Critical Parts Destroyed 4 | . . . . . . . 4 . . . . . Critical Strikes 16 | . 1 . . . 1 . 5 . . . 9 . Burn 1 | . . . . . 1 . . . . . . . Destroy 6 | . 1 . . . . . 5 . . . . . Blast 8 | . . . . . . . . . . . 8 . Sever 1 | . . . . . . . . . . . 1 . Melee Attacks 50 | . . . 4 . 4 8 4 1 4 . 16 9 Impact . | . . . . . . . . . . . . . Slashing 35 | . . . . . 4 2 . . 4 . 16 9 Piercing 11 | . . . . . . 6 4 1 . . . . Sneak Attacks 8 | . . . 4 . . . . . . . 4 . Combat Hostiles . | . . . . . . . . . . . . . Follow-up Attacks . | . . . . . . . . . . . . . Damage Inflicted 21109 | . 1856 428 . 63 3410 2057 3757 . 1071 . 5554 2913 Guns 10821 | . 1856 428 . 63 2657 1859 2772 . 795 . . 391 Cannons 5881 | . . . . . 449 . 361 . 22 . 4320 729 Explosions 2520 | . . . . . 304 . 624 . . . . 1592 Melee 1887 | . . . . . . 198 . . 254 . 1234 201 Ramming . | . . . . . . . . . . . . . Kinetic 8521 | . 1856 428 . 63 366 35 724 . . . 4320 729 Thermal 7788 | . . . . . 2314 1824 2464 . 795 . . 391 Explosive 1639 | . . . . . 281 . . . . . . 1358 Electromagnetic 1274 | . . . . . 449 . 569 . 22 . . 234 Impact . | . . . . . . . . . . . . . Slashing 1689 | . . . . . . . . . 254 . 1234 201 Piercing 198 | . . . . . . 198 . . . . . . Highest Corruption 20 | . . . . . . 2 . . . . . 20 Average Corruption 3 | . . . . . . 1 . . . . . 6 Corruption Purged 4 | . . . . . . 4 . . . . . . Corruption Blocked . | . . . . . . . . . . . . . Effects 19 | . . . . . . 5 . . . . . 14 Message Errors 4 | . . . . . . 1 . . . . . 3 Matter Fused 5 | . . . . . . 1 . . . . . 4 Heat Flow Errors 2 | . . . . . . 2 . . . . . . Energy Discharges 2 | . . . . . . . . . . . . 2 Parts Fused 1 | . . . . . . . . . . . . 1 Data Loss (minor) 2 | . . . . . . 1 . . . . . 1 Data Loss (major) 2 | . . . . . . . . . . . . 2 Misdirections 1 | . . . . . . . . . . . . 1 Overload Shots . | . . . . . . . . . . . . . Overflow Damage 905 | . . . . . 36 60 60 . . . 584 165 Projectiles 704 | . . . . . 26 . 56 . . . 529 93 Explosions 86 | . . . . . 10 . 4 . . . . 72 Melee 115 | . . . . . . 60 . . . . 55 . Knockbacks 21 | . . . . . . . . . . . 19 2 Impact . | . . . . . . . . . . . . . Kinetic 19 | . . . . . . . . . . . 18 1 Secondary 2 | . . . . . . . . . . . 1 1 Self-Inflicted Damage 453 | . . . . . . . 100 . . . . 353 Shots 13 | . . . . . . . 3 . . . . 10 Rammed . | . . . . . . . . . . . . . Targets Rammed . | . . . . . . . . . . . . . Kicked . | . . . . . . . . . . . . . Crushed . | . . . . . . . . . . . . . Highest Temperature 418 | . 26 . . 12 339 267 63 . 418 . 20 376 Average Temperature 67 | . 8 . . 6 64 54 19 . 131 . 5 95 Received Heat Transfer 3511 | . 405 . . . 729 216 378 . 276 . 570 937 Effects 11 | . . . . . 4 . . . 4 . . 3 Shutdowns 3 | . . . . . 1 . . . 1 . . 1 Interference 5 | . . . . . 2 . . . 1 . . 2 Matter Decay 2 | . . . . . . . . . 2 . . . Short Circuit 1 | . . . . . 1 . . . . . . . Siege Activations 15 | . . . . . . . . . 1 . 10 4 Total Turns 405 | . . . . . . . . . 16 . 288 101 Longest Duration 61 | . . . . . . . . . 16 . 61 34 Robots Corrupted 2 | . . . . . 1 . 1 . . . . . Combat Hostiles 1 | . . . . . . . 1 . . . . . Parts Fried 7 | . . . . . 3 . 4 . . . . . Impact Corruptions . | . . . . . . . . . . . . . Robots Melted 1 | . . . . . 1 . . . . . . . Combat Hostiles 1 | . . . . . 1 . . . . . . . Parts Melted 5 | . . . . . 1 . 2 . 2 . . . Heat Transferred 8406 | . . . . . 2892 1480 2397 . 1192 . . 445 Parts Sabotaged 1 | . . . . . . . . . . . . 1 Parts Stolen . | . . . . . . . . . . . . . Parts Stripped . | . . . . . . . . . . . . . Power Chain Reactions 4 | . . . . . 1 . 3 . . . . . Missiles Intercepted . | . . . . . . . . . . . . . Alert | -11 -10 -10 -10 -9 -8 -8 -8 -7 -7 -6 -6 -6 ------- Run | Jun Mat Min Exi Min Mat Gar Mat Fac Gar Fac Gar Fac Peak Influence 3128 | . 267 148 . 70 447 1952 1389 631 2081 1143 3128 2141 Initial 1642 | . . 58 . . . 300 951 631 434 1092 800 1642 Average 1013 | . 114 130 . 16 234 1040 1063 615 1217 1092 1923 1863 Maximum Alert Level 5 | . 1 . . . 2 5 4 2 5 4 5 5 Low Security (%) 19 | . 97 100 . 100 30 . . . . . . . Level 1 9 | . 2 . . . 66 2 . . . . . . Level 2 7 | . . . . . 3 22 . 100 14 . . . Level 3 21 | . . . . . . 34 65 . 31 98 9 . Level 4 17 | . . . . . . 20 34 . 26 1 32 . Level 5 20 | . . . . . . 19 . . 28 . 58 38 High Security 3 | . . . . . . . . . . . . 61 Max Security . | . . . . . . . . . . . . . Squads Dispatched 35 | . 4 . . . 6 . 4 1 . . . 20 Investigation 5 | . 2 . . . 1 . . 1 . . . 1 Extermination 1 | . . . . . . . . . . . . 1 Reinforcement 5 | . 2 . . . 1 . 1 . . . . 1 Assault 17 | . . . . . . . 3 . . . . 14 Garrison 7 | . . . . . 4 . . . . . . 3 Intercept . | . . . . . . . . . . . . . Searches Triggered . | . . . . . . . . . . . . . Construction Impeded 1 | . . . . . . . . . . . . 1 Haulers Reinforced . | . . . . . . . . . . . . . Active Scanning Responses . | . . . . . . . . . . . . . Cargo Convoy Interrupts . | . . . . . . . . . . . . . Alert ID Control Effect 1 | . . . . . . . . . . . . 1 Stealth | -11 -10 -10 -10 -9 -8 -8 -8 -7 -7 -6 -6 -6 --------- Run | Jun Mat Min Exi Min Mat Gar Mat Fac Gar Fac Gar Fac Distress Signals 15 | . 3 . . . 4 . 8 . . . . . Communications Jammed . | . . . . . . . . . . . . . Distress Signals . | . . . . . . . . . . . . . Times Spotted 329 | . 27 3 . 3 49 27 43 . 42 1 38 96 Peak Tracking Total 21 | . 4 3 . 3 6 4 7 . 6 1 6 21 Tactical Retreats 25 | . 1 . . . 3 . 1 . 6 . 7 7 Traps | -11 -10 -10 -10 -9 -8 -8 -8 -7 -7 -6 -6 -6 ------- Run | Jun Mat Min Exi Min Mat Gar Mat Fac Gar Fac Gar Fac Traps Triggered 19 | . 1 . . . . 5 1 . 6 . 6 . Indirectly . | . . . . . . . . . . . . . Trap Hack Attempts . | . . . . . . . . . . . . . Triggered . | . . . . . . . . . . . . . Disarmed . | . . . . . . . . . . . . . Reprogrammed . | . . . . . . . . . . . . . Reused 6 | . . . . . . 6 . . . . . . Traps Extracted . | . . . . . . . . . . . . . Installed 9 | . . . . . . 9 . . . . . . Triggered 9 | . . . . . . 6 . . . . 3 . Most Traps Carried 9 | . . . . . . 9 . . . . . . Exploded 2 | . . . . . 2 . . . . . . . Machines | -11 -10 -10 -10 -9 -8 -8 -8 -7 -7 -6 -6 -6 ---------- Run | Jun Mat Min Exi Min Mat Gar Mat Fac Gar Fac Gar Fac Machines Disabled 39 | . . . . . 4 12 1 . 5 . 13 4 Max in Single Turn 2 | . . . . . 2 2 1 . 1 . 1 2 Garrison Relay 15 | . . . . . . 5 . . 5 . 5 . Phase Generator 1 | . . . . . . 1 . . . . . . Machines Repaired . | . . . . . . . . . . . . . Machines Sabotaged . | . . . . . . . . . . . . . Overloaded Fab Kills . | . . . . . . . . . . . . . Hacking | -11 -10 -10 -10 -9 -8 -8 -8 -7 -7 -6 -6 -6 --------- Run | Jun Mat Min Exi Min Mat Gar Mat Fac Gar Fac Gar Fac Machines Accessed 34 | . 7 . 1 . 7 4 8 1 2 1 2 1 Terminals 24 | . 5 . . . 4 4 6 . 2 . 2 1 Fabricators . | . . . . . . . . . . . . . Repair Stations . | . . . . . . . . . . . . . Recycling Units 3 | . 2 . . . . . 1 . . . . . Scanalyzers 3 | . . . . . 2 . 1 . . . . . Garrison Access 3 | . . . . . 1 . . 1 . 1 . . Total Hacks 105 | . 27 . 1 . 22 8 26 6 5 1 5 4 Successful 62 | . 15 . 1 . 16 3 16 4 2 1 2 2 Failed 43 | . 12 . . . 6 5 10 2 3 . 3 2 Catastrophic 6 | . 1 . . . . 3 1 . . . 1 . Database Lockouts . | . . . . . . . . . . . . . Manual 56 | . 21 . 1 . 12 . 14 5 . . . 3 Terminals 74 | . 21 . . . 15 8 16 . 5 . 5 4 Fabricators . | . . . . . . . . . . . . . Repair Stations . | . . . . . . . . . . . . . Recycling Units 9 | . 6 . . . . . 3 . . . . . Scanalyzers 13 | . . . . . 6 . 7 . . . . . Garrison Access 8 | . . . . . 1 . . 6 . 1 . . Terminal Hacks 31 | . 10 . 1 . 7 3 5 . 2 . 2 1 Part Schematic 1 | . 1 . . . . . . . . . . . Robot Analysis 9 | . 5 . . . 3 . . . . . . 1 Prototype ID Bank 2 | . 1 . . . 1 . . . . . . . Branch Access Points 1 | . . . . . 1 . . . . . . . Emergency Access Points 4 | . 1 . . . . 1 . . 1 . 1 . Garrison Index 1 | . . . . . 1 . . . . . . . Hauler Manifests 1 | . 1 . . . . . . . . . . . Zone Layout 7 | . 1 . . . 1 . 5 . . . . . Garrison Registry 1 | . . . . . . 1 . . . . . . Patrol Navigation 2 | . . . . . . 1 . . . . 1 . Security Stations 1 | . . . . . . . . . 1 . . . EX-Prototype ID Bank 1 | . . . 1 . . . . . . . . . Fabricator Hacks . | . . . . . . . . . . . . . Repair Station Hacks . | . . . . . . . . . . . . . Recycling Unit Hacks 2 | . 1 . . . . . 1 . . . . . Report Inventory 2 | . 1 . . . . . 1 . . . . . Scanalyzer 13 | . . . . . 6 . 7 . . . . . Insert Component 6 | . . . . . 3 . 3 . . . . . Analyze 7 | . . . . . 3 . 4 . . . . . Garrison Access Hacks 3 | . . . . . 1 . . 1 . 1 . . Unlock Access 3 | . . . . . 1 . . 1 . 1 . . Unauthorized Hacks 13 | . 4 . . . 2 . 3 3 . . . 1 Terminals 7 | . 3 . . . 2 . 1 . . . . 1 Assimilate 1 | . . . . . 1 . . . . . . . Botnet 5 | . 3 . . . 1 . . . . . . 1 Disrupt 1 | . . . . . . . 1 . . . . . Fabricators . | . . . . . . . . . . . . . Repair Stations . | . . . . . . . . . . . . . Recycling Units 3 | . 1 . . . . . 2 . . . . . Reject 1 | . . . . . . . 1 . . . . . Mask 2 | . 1 . . . . . 1 . . . . . Scanalyzers . | . . . . . . . . . . . . . Garrison Access 3 | . . . . . . . . 3 . . . . Reprogram 1 | . . . . . . . . 1 . . . . Intercept 1 | . . . . . . . . 1 . . . . Watchers 1 | . . . . . . . . 1 . . . . Data Cores Recovered 2 | . 1 . . . . . . . . . . 1 Used . | . . . . . . . . . . . . . Hacking Detections 28 | . 6 . . . 6 4 7 1 2 . 1 1 Full Trace Events 10 | . 3 . . . 1 3 . 1 . . 1 1 Feedback Events 3 | . . . . . . 3 . . . . . . Corruption 2 | . . . . . . 2 . . . . . . Hackware Fried 1 | . . . . . . 1 . . . . . . Feedback Blocked . | . . . . . . . . . . . . . Robot Schematics Acquired . | . . . . . . . . . . . . . Robots Built . | . . . . . . . . . . . . . Authchips . | . . . . . . . . . . . . . Time . | . . . . . . . . . . . . . Total Robot Build Rating . | . . . . . . . . . . . . . Part Schematics Acquired 7 | . 1 . . . 3 . 3 . . . . . Parts Built . | . . . . . . . . . . . . . Authchips . | . . . . . . . . . . . . . Time . | . . . . . . . . . . . . . Total Part Build Rating . | . . . . . . . . . . . . . Parts Repaired . | . . . . . . . . . . . . . Time . | . . . . . . . . . . . . . Parts Recycled . | . . . . . . . . . . . . . Recycled Matter . | . . . . . . . . . . . . . Retrieved Matter . | . . . . . . . . . . . . . Retrieved Components . | . . . . . . . . . . . . . Parts Scanalyzed 6 | . . . . . 3 . 3 . . . . . Part Schematics Acquired 6 | . . . . . 3 . 3 . . . . . Parts Damaged . | . . . . . . . . . . . . . Bothacking | -11 -10 -10 -10 -9 -8 -8 -8 -7 -7 -6 -6 -6 ------------ Run | Jun Mat Min Exi Min Mat Gar Mat Fac Gar Fac Gar Fac Used RIF Installer 3 | . . . . . . 1 . . 1 . 1 . Patrol Navigation 1 | . . . . . . . . . 1 . . . Alert ID Control 1 | . . . . . . . . . . . 1 . Robots Hacked 38 | . . . 4 . . . . . 19 2 1 12 Non-combat 5 | . . . 3 . . . . . . 2 . . Combat 33 | . . . 1 . . . . . 19 . 1 12 Robot Hacks Applied 43 | . . . 4 . . . . . 21 2 3 13 parse_system 5 | . . . 4 . . . . . 1 . . . find_chute 1 | . . . . . . . . . . 1 . . find_recycling 1 | . . . . . . . . . . 1 . . find_shortcuts 1 | . . . . . . . . . 1 . . . scatter_targeting 5 | . . . . . . . . . 3 . 1 1 overload_power 1 | . . . . . . . . . . . 1 . reboot_system 1 | . . . . . . . . . . . 1 . overwrite_iff 15 | . . . . . . . . . 7 . . 8 formatsys_high 13 | . . . . . . . . . 9 . . 4 Relay Couplers Released 65 | . . . . . . 17 . . 25 . 23 . Machine Destruction 61 | . . . . . . 17 . . 21 . 23 . Programmers 4 | . . . . . . . . . 4 . . . Attached 17 | . . . . . . . . . 11 . 1 5 Fabnet Peak Effective % . | . . . . . . . . . . . . . Robots Rewired 8 | . . . . . . . . . 6 . 2 . Allies Hacked 3 | . . . . . . . . . 2 . . 1 Hacks Repelled . | . . . . . . . . . . . . . Allies | -11 -10 -10 -10 -9 -8 -8 -8 -7 -7 -6 -6 -6 -------- Run | Jun Mat Min Exi Min Mat Gar Mat Fac Gar Fac Gar Fac Total Allies 50 | . . . . 1 1 . . . 26 . 6 16 Largest Group 11 | . . . . 1 2 . . . 11 8 8 5 Highest-Rated Group 406 | . . . . 31 41 . . . 346 232 406 142 Highest-Rated Ally 148 | . . . . 31 31 . . . 80 80 148 80 Total Orders 7 | . . . . . . . . 1 2 . 4 . STAY 2 | . . . . . . . . . 1 . 1 . ROAM 2 | . . . . . . . . . . . 2 . FOLLOW 2 | . . . . . . . . . 1 . 1 . EXPLORE 1 | . . . . . . . . 1 . . . . Ally Attacks 251 | . . . . . 1 . . . 101 4 91 54 Total Damage 6968 | . . . . . . . . . 2416 156 2895 1501 Kills 43 | . . . . . . . . . 17 1 17 8 Allies Corrupted 3 | . . . . . . . . . 3 . . . Allies Melted . | . . . . . . . . . . . . . Field Lobotomies 4 | . . . . . . . . . . . . 4 Intel | -11 -10 -10 -10 -9 -8 -8 -8 -7 -7 -6 -6 -6 ------- Run | Jun Mat Min Exi Min Mat Gar Mat Fac Gar Fac Gar Fac Robot Analysis Total 9 | . 5 . . . 3 . . . . . . 1 Derelict Logs Recovered 2 | . . . . 2 . . . . . . . . Drone Launches 3 | . . . . . . . . 3 . . . . Drone Recoveries . | . . . . . . . . . . . . . Exploration | -11 -10 -10 -10 -9 -8 -8 -8 -7 -7 -6 -6 -6 ------------- Run | Jun Mat Min Exi Min Mat Gar Mat Fac Gar Fac Gar Fac Turns Passed 16110 | . 1592 302 400 549 2216 2343 1957 256 2628 111 2878 878 Spaces Moved 6607 | 1 728 149 284 334 854 887 689 96 1188 45 972 380 Core . | . . . . . . . . . . . . . Treads 2115 | . 13 6 . 11 104 . . . 1187 45 572 177 Legs 54 | 1 53 . . . . . . . . . . . Wheels 4235 | . 662 143 284 323 750 887 689 96 1 . 400 . Hover . | . . . . . . . . . . . . . Flight 203 | . . . . . . . . . . . . 203 Fastest Speed 31 | 120 120 130 130 130 115 115 160 171 140 240 165 31 Average Speed 163 | 120 133 137 130 136 137 155 167 207 180 240 217 144 Slowest Speed 355 | 120 320 320 130 320 320 168 215 215 240 240 255 355 Overloaded Moves . | . . . . . . . . . . . . . Propulsion Burnouts . | . . . . . . . . . . . . . Robots Hopped 4 | . . . . . . . . . . . . 4 Cave-ins Triggered . | . . . . . . . . . . . . . Exploration Rate (%) 54 | 1 95 36 68 81 64 97 59 6 97 4 94 9 Regions Visited 12 Branch Regions 3 Pre-discovered Areas 1 | . . . . 1 . . . . . . . . Known Exits Taken 3 | . . . . . 1 . . 1 . 1 . . Unknown Exits Taken 6 | 1 1 1 1 1 . . 1 . . . . . Scrap Searched 3 | . . . . 3 . . . . . . . . Spaces Dug 57 | . . . . . 4 1 13 1 . . 7 31 Terrain Destroyed 350 | . . . . . 21 153 65 1 . . 30 80 Melee 13 | . . . . . 4 1 4 1 . . . 3 Projectile 72 | . . . . . . 3 28 . . . 30 11 AOE 265 | . . . . . 17 149 33 . . . . 66 Terrain Rammed . | . . . . . . . . . . . . . Walls Destroyed . | . . . . . . . . . . . . . Machines Disabled . | . . . . . . . . . . . . . Actions | -11 -10 -10 -10 -9 -8 -8 -8 -7 -7 -6 -6 -6 --------- Run | Jun Mat Min Exi Min Mat Gar Mat Fac Gar Fac Gar Fac Total 10847 | . 1126 198 317 422 1681 1714 1333 152 1617 48 1592 647 Wait 2750 | . 240 21 12 65 569 608 490 32 217 . 384 112 Move 6590 | . 727 148 283 333 854 886 688 96 1187 44 971 373 Hop 3 | . . . . . . . . . . . . 3 Pick Up 219 | . 22 . 8 7 36 38 16 7 38 . 32 15 Fast Attach 44 | . 2 . . . 16 2 5 1 3 . 10 5 Attach 87 | . 3 . . 1 10 5 2 3 12 . 15 36 Detach 25 | . . . . . 3 1 1 . 3 . 5 12 Swap 157 | . 18 5 1 5 27 31 17 5 22 1 6 19 Drop 227 | . 7 1 9 7 43 30 23 7 48 1 40 11 Fire 652 | . 107 23 . 4 119 72 87 . 83 2 103 52 Melee 50 | . . . 4 . 4 8 4 1 4 . 16 9 Ram . | . . . . . . . . . . . . . Kick . | . . . . . . . . . . . . . Crush . | . . . . . . . . . . . . . Escape Stasis 34 | . . . . . . 24 . . . . 10 . Rewire . | . . . . . . . . . . . . . Trap 9 | . . . . . . 9 . . . . . . Miscellaneous . | . . . . . . . . . . . . . Route ------- -11/Junkyard -10/Materials (discovered 5 exits: [*Mat x3] / [*Min x2]) -10/Mines (discovered 3 exits: [*Mat x2] / *Exi) -10/Exiles -9/Mines (discovered 2 exits: *Mat x2) -8/Materials (discovered 3 exits: *Fac x2 / Gar) -8/Garrison (discovered 3 exits: *Mat x3) -8/Materials -7/Factory -7/Garrison (discovered 3 exits: *Fac x3) -6/Factory -6/Garrison (discovered 3 exits: *Fac x3) -6/Factory History --------- Turn | Location | Event 1 | -11/Junkyard | Discovered new exit (range 0) 1 | -11/Junkyard | Entered Materials 1 | -10/Materials | Discovered new exit (range 8) 235 | -10/Materials | Discovered new exit (range 13) 309 | -10/Materials | Build established: Mutant 900 | -10/Materials | Discovered new exit (range 5) 1032 | -10/Materials | Core integrity fell below 50% 1256 | -10/Materials | Discovered new exit (range 16) 1489 | -10/Materials | Discovered new exit (range 4) 1593 | -10/Materials | Entered Mines 1601 | -10/Mines | Discovered new exit (range 7) 1719 | -10/Mines | Destroyed YI-UF0 1750 | -10/Mines | Discovered new exit (range 9) 1839 | -10/Mines | Deemed a non-threat by the Exiles lab entrance 1839 | -10/Mines | Discovered new exit (range 5) 1864 | -10/Mines | Assembled infested the area 1895 | -10/Mines | Entered Exiles 1941 | -10/Exiles | Met 8R-AWN 1961 | -10/Exiles | Met EX-HEX 2025 | -10/Exiles | Met EX-BIN 2040 | -10/Exiles | Aligned with FarCom system 2042 | -10/Exiles | Given EX-Vault access code 2072 | -10/Exiles | Opened EX-Vault 2081 | -10/Exiles | Found YOLO Cannon 2084 | -10/Exiles | Found Longsword +1 2092 | -10/Exiles | Found Field Lobotomy Kit 2121 | -10/Exiles | Warned to stay clear of 0b10 Research branches 2218 | -10/Exiles | Met EX-DEC 2282 | -10/Exiles | Discovered new exit (range 10) 2295 | -10/Exiles | Stole three prototypes: YOLO Cannon, Field Lobotomy Kit, Longsword +1 2295 | -10/Exiles | Entered Mines 2295 | -9/Mines | Discovered new exit (range 12) 2509 | -9/Mines | Discovered new exit (range 13) 2673 | -9/Mines | Received a Mining Laser from a helpful Derelict 2702 | -9/Mines | Learned Materials garrison access intel 2817 | -9/Mines | Received a Rocket Launcher from a helpful Derelict 2844 | -9/Mines | Entered Materials 2844 | -8/Materials | Accompanied by 1 ally 2844 | -8/Materials | Evolved 4 slots: Propulsion x1, Utility x3 2845 | -8/Materials | Loaded intel: 1 garrison access location 3238 | -8/Materials | Lost 5 parts (2p1u2w) 3306 | -8/Materials | Discovered new exit (range 7) 3454 | -8/Materials | Garrison activated, responded to threat 3519 | -8/Materials | Destroyed 8 combat bots 3543 | -8/Materials | Build established: Scavenger-Mutant 3608 | -8/Materials | Discovered new exit (range 5) 3768 | -8/Materials | Lost 3 parts (1p1n1u) 4441 | -8/Materials | Build established: Hacker-Mutant 4990 | -8/Materials | Garrison activated, responded to threat 5060 | -8/Materials | Identified exit to Garrison 5060 | -8/Materials | Entered Garrison 5081 | -8/Garrison | Build established: Scavenger-Mutant 5093 | -8/Garrison | Hacking Suite fried by hacking feedback 5098 | -8/Garrison | Triggered checkpoint 5151 | -8/Garrison | Garrison Relay disabled 5324 | -8/Garrison | Phase Generator disabled 5383 | -8/Garrison | Build established: Mutant 5484 | -8/Garrison | Triggered checkpoint 5555 | -8/Garrison | Discovered new exit (range 12) 5984 | -8/Garrison | Build established: Hauler-Mutant 6005 | -8/Garrison | Triggered checkpoint 6014 | -8/Garrison | Core integrity fell below 50% 6078 | -8/Garrison | Garrison Relay disabled 6256 | -8/Garrison | Triggered checkpoint 6527 | -8/Garrison | Triggered checkpoint 6605 | -8/Garrison | Discovered new exit (range 5) 6662 | -8/Garrison | Triggered checkpoint 6683 | -8/Garrison | Garrison Relay disabled 6757 | -8/Garrison | Discovered new exit (range 23) 6757 | -8/Garrison | Discovered new exit (range 33) 6757 | -8/Garrison | Discovered new exit (range 43) 6821 | -8/Garrison | Installed Relay Interface Framework 6947 | -8/Garrison | Garrison Relay disabled 7062 | -8/Garrison | Triggered checkpoint 7124 | -8/Garrison | Build established: Bothacker-Mutant 7302 | -8/Garrison | Garrison Relay disabled 7403 | -8/Garrison | Entered Materials 7803 | -8/Materials | First assault squad dispatched 9306 | -8/Materials | Core integrity fell below 20% 9332 | -8/Materials | Discovered new exit (range 15) 9360 | -8/Materials | Entered Factory 9360 | -7/Factory | Evolved 2 slots: Propulsion x1, Utility x1 9362 | -7/Factory | FarCom data flow suspended 9608 | -7/Factory | Identified exit to Garrison 9616 | -7/Factory | Entered Garrison 9674 | -7/Garrison | Rescued a captive Derelict 9676 | -7/Garrison | Rescued a captive Derelict 9708 | -7/Garrison | Triggered checkpoint 9726 | -7/Garrison | Garrison Relay disabled 9832 | -7/Garrison | Triggered checkpoint 9956 | -7/Garrison | Triggered checkpoint 9988 | -7/Garrison | Triggered checkpoint 10005 | -7/Garrison | Triggered checkpoint 10073 | -7/Garrison | Triggered checkpoint 10158 | -7/Garrison | Triggered checkpoint 10321 | -7/Garrison | Garrison Relay disabled 10385 | -7/Garrison | Discovered new exit (range 11) 10676 | -7/Garrison | Discovered new exit (range 10) 10749 | -7/Garrison | Expanded RIF knowledge: Patrol Navigation 10768 | -7/Garrison | Found embedded Infiltrators 10789 | -7/Garrison | Garrison Relay disabled 10836 | -7/Garrison | Triggered checkpoint 10858 | -7/Garrison | Triggered checkpoint 11115 | -7/Garrison | P-70 Sage assimilated allied Guardian 4a 11174 | -7/Garrison | Triggered checkpoint 11207 | -7/Garrison | Garrison Relay disabled 11238 | -7/Garrison | Discovered new exit (range 15) 11249 | -7/Garrison | Learned Factory security intel 12164 | -7/Garrison | Garrison Relay disabled 12244 | -7/Garrison | Entered Factory 12244 | -6/Factory | Accompanied by 8 allies 12244 | -6/Factory | Evolved 2 slots: Utility x2 12345 | -6/Factory | Identified exit to Garrison 12355 | -6/Factory | Entered Garrison 12355 | -6/Garrison | Accompanied by 7 allies 12378 | -6/Garrison | Rescued a captive Derelict 12384 | -6/Garrison | Rescued a captive Derelict 12400 | -6/Garrison | Triggered checkpoint 12444 | -6/Garrison | Garrison Relay disabled 12520 | -6/Garrison | Garrison Relay disabled 12642 | -6/Garrison | Triggered checkpoint 12953 | -6/Garrison | Triggered checkpoint 12985 | -6/Garrison | Garrison Relay disabled 13057 | -6/Garrison | Discovered new exit (range 12) 13169 | -6/Garrison | Triggered checkpoint 13238 | -6/Garrison | Spotted B-90 Cyclops 13264 | -6/Garrison | Rewired B-90 Cyclops 13272 | -6/Garrison | Rewired B-86 Titan 13279 | -6/Garrison | Allies destroyed B-90 Cyclops 13352 | -6/Garrison | Found Hvy. Reflective Plating 13635 | -6/Garrison | Triggered checkpoint 13827 | -6/Garrison | Triggered checkpoint 13865 | -6/Garrison | Garrison Relay disabled 14004 | -6/Garrison | Triggered checkpoint 14041 | -6/Garrison | Discovered new exit (range 14) 14214 | -6/Garrison | Triggered checkpoint 14315 | -6/Garrison | Triggered checkpoint 14384 | -6/Garrison | Found embedded Infiltrators 14395 | -6/Garrison | Garrison Relay disabled 14502 | -6/Garrison | Expanded RIF knowledge: Alert ID Control 14573 | -6/Garrison | Discovered new exit (range 10) 14832 | -6/Garrison | Destroyed Cyclops 5a 14907 | -6/Garrison | Spotted B-75 Beast 14990 | -6/Garrison | Found Gamma Bomb Array 15065 | -6/Garrison | Found Fusion Bomb Launcher 15233 | -6/Garrison | Entered Factory 15233 | -6/Factory | Accompanied by 2 allies 15561 | -6/Factory | P-60 Hacker assimilated allied 1G-V7Y(x) 15567 | -6/Factory | High security lockdown imminent 15647 | -6/Factory | High security lockdown engaged 15838 | -6/Factory | Garrison activated, responded to threat 15892 | -6/Factory | Lost 4 parts (2n1u1w) 15931 | -6/Factory | Assimilated P-60 Hacker with FLK Orb 15933 | -6/Factory | Assimilated P-60 Hacker with FLK Orb 15936 | -6/Factory | Assimilated P-60 Hacker with FLK Orb 15939 | -6/Factory | Core integrity fell below 50% 15968 | -6/Factory | System corruption reached 10% 16004 | -6/Factory | Lost 14 parts (2p8u4w) 16073 | -6/Factory | Assimilated C-30 ARC with FLK Orb 16076 | -6/Factory | Core integrity fell below 20% 16111 | -6/Factory | Destroyed by G-67 Veteran with Field Laser Last Messages --------------- 16093_ S-27 Virus destroyed. 16096_ System corrupted: Mic. Antimatter Reactor fused. 16097_ P-60 Hacker destroyed. 16099_ Acquired 26 matter. 16102_ Hrd. Light Armor Plating destroyed. 16104_ C-30 ARC bursts open, deploying its payload. 16104_ H-66 Slayer unfolds itself. 16104_ E-15 Imp unfolds itself. 16106_ Slug penetrates Wall. 16106_ E-15 Imp destroyed. 16107_ Microactuators destroyed. 16108_ Acquired 15 matter. 16108_ Drone sends a signal. 16108_ Acquired Cesium-ion Thruster. 16109_ Hrd. Light Armor Plating destroyed. 16109_ P-60 Hacker resets G-67 Veteran, system corruption cleaned. 16109_ Slug penetrates Wall. 16109_ Penetrated by Slug. 16111_ Slug penetrates Wall. 16111_ Q-thruster destroyed. Map ----- +----------------------------------------------------+ | ] #??###??# | | #???????# | | #???????# | | #???????# | | """ #???????# | | """ ######## # # % #???????# ####### | | "" #?# ######### # | | %!! " #?# # # ! | | ==% "" ### " ^ + ! | | %!=! + [ "%" ^^ # | | =[%* ### " ^ % # | | %* #?# """ % ^^ * % # | | [# #####?# "" =# ##+## [== ##### | | !#????# "" # # = [ #???# | | #????# " #""" # % #???# | | """ #????# "" = """ + #####+##### | | """ #????# """ # # ^ | | """ #????# #"S # # ^^ | | """ #????###### ## "" # #? ^ | | #?????????## ## #"" # * #?? | | """ #??????????## # # # == *= % ##+## | | """ #???????????####### p =%%[% | | "?" #?????????????????# """ #%#####%%########### | | ??? #?????????????????# """gh#" ##[!#?########? | | ??? !#?????????????????# """ /# ###*### """ ## | | ???###?????????????????# @ sl# #|%!= # "T" ## | | ???????????????????????# *gg m# *![ # ## | | ???????????????????????######## g gh!!== + != #? | | ??????????????????????????????# p# # #? | | ??????????????????????????????# # # ! ! #? | | ??????????????????????????????# ##############? | | ??????????????????????????????# #?###?????????? | | ??????????????????????????????######?????????????? | | ?????????????????????????????????????????????????? | | ?????????????????????????????????????????????????? | | ?????????????????????????????????????????????????? | | ?????????????????????????????????????????????????? | | ?????????????????????????????????????????????????? | | | | | | | | | | | | | | | | | | | | | | | | | +----------------------------------------------------+ Best States ------------- Heat Dissipation 68 Energy Generation 25 Energy Capacity 340 Matter Stores 300 Matter Capacity 300 Sight Range 16 Terrain Scan Density 10 ECM Strength 1 Additional Mass Support 9 Armor Coverage 2400 Resistance: TH 25 Resistance: EM 15 Weapon Cycling 20 Melee Speed Boost 20 Evasion (%) 63 Targeting Accuracy 8 Launcher Accuracy 40 Core Analysis 6 Recoil Reduction 4 Kinecelleration 40 Offensive Hacking 20 Defensive Hacking 10 Relay Coupler Types 4 Relay Coupler Value 153 Item Schematics ----------------- Cargo Storage Unit | -10/Materials | Hacked Humpback | -8/Materials | Scanalyzed Med. Storage Unit | -8/Materials | Scanalyzed Huge Storage Unit | -8/Materials | Scanalyzed Hrd. Medium Armor Plating | -8/Materials | Scanalyzed Hvy. Treads | -8/Materials | Scanalyzed Wave Gun | -8/Materials | Scanalyzed Robot Schematics ------------------ None Fabricated ------------ Nothing Alien Tech Used ----------------- None Achievements -------------- None Challenges ------------ None Game ------ Seed HelicalWeldingAutohacker Manual? 1 Play Time 02:22:04 Cumulative 532.2 hours Start 2023.04.04 @ 16:19:13 End 2023.04.04 @ 18:43:40 Sessions 1 Manual Loads 0 Difficulty Rogue Special Mode None Game No. 562 Rogue 562 Adventurer 0 Explorer 0 Win Type - Total 1 Types 1/0/0/0/0/0/0/0/0 Lore% 65 Gallery% 83 Achievement% 66 Wizard Run 0 Options --------- ASCII 0 Keyboard 0 Movement Mouse Keybinds 0 Fullscreen 2 Font 24/Smallcaps Map View 76x50 Tactical HUD 1 Map Filters NONE Filters NONE Steam 1 RUN: 6fc61093-7c5a-492b-8365-58602682fb85